bitfinex/quotes_ETHUSD_20250804
["timestamp","ask_amount","ask_price","bid_price","bid_amount"]
[1754304989270,11.137,3562.0,3561.9,0.002]
[1754304989456,15.389,3562.0,3561.9,0.002]
[1754304992074,11.137,3562.0,3561.9,0.002]
[1754304992784,15.389,3562.0,3561.9,0.002]
[1754304997377,11.137,3562.0,3561.9,0.002]
[1754304997581,15.389,3562.0,3561.9,0.002]
[1754304998382,11.137,3562.0,3561.9,0.002]
[1754304998553,15.389,3562.0,3561.9,0.002]
[1754304999053,15.339,3562.0,3561.9,0.002]
[1754304999846,16.8729,3562.0,3561.9,0.002]
[1754305000469,12.6209,3562.0,3561.9,0.002]
[1754305000754,16.8719,3562.0,3561.9,0.002]
[1754305002789,19.67931156,3562.0,3561.9,0.002]
[1754305004573,16.8719,3562.0,3561.9,0.002]
[1754305005583,0.55,3561.9,3560.9,2.80827581]
[1754305005753,0.55,3561.5,3561.0,0.86166907]
[1754305006085,0.1408,3561.1,3561.0,0.86166907]
[1754305006282,4.3918,3561.1,3561.0,0.86166907]
[1754305007387,4.3418,3561.1,3561.0,0.86166907]
[1754305007586,4.3418,3561.1,3560.8,2.80835759]
[1754305007890,4.3418,3561.1,3560.7,5.80841466]
[1754305009589,4.3418,3561.1,3560.8,2.80834071]
[1754305009786,4.3418,3561.1,3560.9,2.80821232]
[1754305009990,4.3418,3561.1,3561.0,2.80819994]
[1754305010168,4.3418,3561.1,3560.9,2.80824516]
[1754305010791,4.3418,3561.1,3561.0,2.80819994]
[1754305011371,0.55,3561.8,3561.1,2.808047]
[1754305011566,0.14,3561.3,3561.1,2.8080959]
[1754305011779,0.14,3561.3,3559.6,3.08316103]
[1754305011780,4.251,3561.2,3560.0,3.0]
[1754305011972,4.251,3561.2,3560.6,5.80850269]
[1754305012170,4.251,3561.1,3560.9,11.57169213]
[1754305012680,4.251,3561.1,3560.2,0.3112535]
[1754305013085,4.251,3561.1,3560.4,5.80862307]
[1754305013263,4.251,3561.1,3560.4,3.0]
[1754305013587,0.55,3561.0,3560.0,11.57169213]
[1754305013891,0.03510348,3560.9,3559.9,3.0]
[1754305014078,0.55,3560.8,3559.8,11.57169213]
[1754305014268,4.251,3560.7,3559.8,11.57169213]
[1754305014465,0.55,3560.6,3559.3,0.002]
[1754305014670,0.55,3560.6,3559.5,14.38106349]
[1754305014990,0.03510742,3560.5,3559.6,5.80930057]
[1754305015164,0.55,3560.4,3559.5,11.57169213]
[1754305015364,10.999,3560.3,3559.3,2.81151605]
[1754305015597,10.999,3560.3,3559.4,3.0]
[1754305015958,10.999,3560.3,3559.4,5.80944093]
[1754305016466,10.999,3560.3,3559.3,11.57369213]
[1754305016867,10.999,3560.3,3559.4,3.0]
[1754305017073,13.80782843,3560.3,3559.3,0.002]
[1754305017288,0.55,3560.2,3559.3,0.002]
[1754305018092,0.58511038,3560.2,3559.3,0.002]
[1754305018271,1.15841104,3560.1,3559.3,0.002]
[1754305018471,0.55,3559.9,3558.9,2.952]
[1754305018694,0.55,3559.7,3558.7,2.81000052]
[1754305018893,0.55,3559.7,3558.8,2.8099275]
[1754305019092,1.15841104,3560.1,3557.9,0.84445]
[1754305019093,4.252,3559.6,3559.1,11.57169213]
[1754305019269,4.252,3559.5,3559.1,11.57169213]
[1754305019668,4.252,3559.4,3559.1,11.57169213]
[1754305020086,4.252,3559.4,3558.8,14.38159994]
[1754305020287,4.252,3559.4,3558.6,2.81008837]
[1754305020600,4.252,3559.4,3557.9,0.84445]
[1754305020601,1.70841104,3560.1,3559.0,2.80976444]
[1754305020791,4.802,3560.0,3559.1,14.38133662]
[1754305021296,4.252,3559.9,3559.2,2.80962013]
[1754305021475,0.55,3560.2,3559.1,11.57169213]
[1754305021676,4.252,3559.8,3559.1,11.57169213]
[1754305022001,0.1408,3559.6,3559.1,14.5221813]
[1754305022183,4.252,3559.5,3559.1,11.71249213]
[1754305022369,4.202,3559.5,3559.1,11.71249213]
[1754305022998,4.202,3559.5,3559.1,14.52216191]
[1754305023365,4.202,3559.5,3559.1,11.71249213]
[1754305023770,0.1408,3559.6,3559.1,11.71249213]
[1754305023771,4.253,3559.4,3559.2,3.0]
[1754305023970,4.253,3559.4,3559.3,17.38123333]
[1754305024196,4.253,3559.4,3559.3,17.52203333]
[1754305026706,0.1408,3559.9,3559.5,2.8093778]
[1754305026909,0.1408,3559.9,3559.3,17.52203333]
[1754305026910,4.253,3559.8,3559.7,2.80915251]
[1754305027090,4.253,3559.8,3559.6,2.80927935]
[1754305027687,6.748,3560.3,3559.6,2.80927935]
[1754305027892,0.1408,3560.0,3559.6,2.80927935]
[1754305028212,4.253,3559.9,3559.7,2.80922404]
[1754305028395,4.253,3559.8,3559.7,11.57169213]
[1754305028596,0.1408,3560.1,3559.8,2.80912779]
[1754305028801,4.253,3560.0,3559.7,14.38087016]
[1754305029178,0.1408,3560.1,3559.7,14.38087016]
[1754305029179,0.1408,3560.1,3559.7,11.57169213]
[1754305029380,4.253,3560.0,3559.7,11.71249213]
[1754305029592,4.253,3560.0,3559.8,2.80909096]
[1754305029993,4.253,3560.0,3559.8,2.80911896]
[1754305030507,0.84422,3561.1,3559.7,11.57169213]
[1754305030708,6.8918,3560.4,3560.1,11.57169213]
[1754305030909,6.8918,3560.4,3560.1,14.38057864]
[1754305031101,6.751,3560.4,3560.2,2.80876317]
[1754305031299,4.253,3560.3,3560.2,2.80876317]
[1754305031506,4.253,3560.3,3560.1,14.38057833]
[1754305031681,4.253,3560.3,3560.1,11.57169213]
[1754305032518,6.701,3560.4,3560.3,2.80875207]
[1754305032723,10.954,3560.4,3560.3,2.80875207]
[1754305033315,6.701,3560.4,3560.3,2.80875207]
[1754305033515,6.701,3560.4,3560.3,2.94955207]
[1754305033735,6.701,3560.4,3560.3,5.94955207]
[1754305034020,6.701,3560.4,3560.3,7.10672128]
[1754305034021,10.954,3560.4,3560.3,7.10672128]
[1754305036435,10.954,3560.4,3560.3,18.67841341]
[1754305036641,10.954,3560.4,3560.3,5.80875207]
[1754305037531,10.953,3560.4,3560.3,3.0]
[1754305037826,10.953,3560.4,3560.1,0.1408]
[1754305038042,10.953,3560.4,3560.3,2.80875207]
[1754305038043,6.701,3560.4,3560.3,2.80875207]
[1754305038339,10.958,3560.4,3560.3,2.80875207]
[1754305039646,10.958,3560.4,3560.2,3.0]
[1754305039810,10.958,3560.4,3560.3,2.80875207]
[1754305040197,10.958,3560.4,3560.3,2.94955207]
[1754305040433,6.701,3560.4,3560.3,2.94955207]
[1754305040609,10.958,3560.4,3560.3,2.94955207]
[1754305041329,10.958,3560.4,3560.3,5.94955207]
[1754305042033,6.701,3560.4,3560.3,5.94955207]
[1754305042235,10.957,3560.4,3560.3,5.94955207]
[1754305044904,6.701,3560.4,3560.3,5.94955207]
[1754305045108,10.956,3560.4,3560.3,5.94955207]
[1754305045533,10.957,3560.4,3560.3,5.94955207]
[1754305046032,6.701,3560.4,3560.3,5.94955207]
[1754305046232,10.957,3560.4,3560.3,5.94955207]
[1754305046432,6.701,3560.4,3560.3,5.94955207]
[1754305047016,10.956,3560.4,3560.3,5.94955207]
[1754305048120,10.956,3560.4,3560.3,6.79345207]
[1754305048431,11.956,3560.4,3560.3,6.79345207]
[1754305049663,11.956,3560.4,3560.3,5.94955207]
[1754305052371,11.955,3560.4,3560.3,5.94955207]
[1754305052568,12.955,3560.4,3560.3,5.94955207]
[1754305054561,12.955,3560.4,3560.3,3.1408]
[1754305054852,12.955,3560.4,3560.3,3.0]
[1754305055053,12.955,3560.4,3560.1,0.1408]
[1754305057577,12.955,3560.4,3559.9,0.002]
[1754305057741,12.955,3560.4,3560.0,0.1408]
[1754305059536,12.955,3560.4,3560.0,3.1408]
[1754305063169,12.955,3560.4,3560.0,0.1408]
[1754305064472,12.955,3560.4,3560.1,2.80885548]
[1754305065279,12.955,3560.4,3560.0,2.94975129]
[1754305065865,12.955,3560.4,3560.0,0.1408]
[1754305066253,8.701,3560.4,3560.0,0.1408]
[1754305066468,4.253,3560.3,3560.0,2.94973469]
[1754305066791,8.701,3560.4,3560.0,2.94973469]
[1754305066954,4.253,3560.3,3560.0,2.94973469]
[1754305067155,4.253,3560.3,3560.0,0.1408]
[1754305067389,4.253,3560.3,3560.0,2.94978814]
[1754305068087,4.253,3560.3,3560.0,0.1408]
[1754305068392,4.253,3560.3,3560.0,2.94978865]
[1754305068890,4.253,3560.3,3560.0,0.1408]
[1754305069800,4.253,3560.3,3560.0,2.94978702]
[1754305070363,4.253,3560.3,3560.0,0.1408]
[1754305072859,4.253,3560.3,3560.0,2.94976516]
[1754305074024,8.701,3560.4,3560.1,14.57169213]
[1754305074298,4.252,3560.3,3560.1,14.57169213]
[1754305074909,4.252,3560.3,3560.1,17.38057688]
[1754305075111,8.701,3560.4,3560.1,17.38057688]
[1754305075313,8.701,3560.4,3560.1,14.57169213]
[1754305075599,4.252,3560.3,3560.2,2.80877858]
[1754305076173,8.702,3560.4,3560.2,2.80877858]
[1754305076379,4.252,3560.3,3560.2,2.80877858]
[1754305077466,8.702,3560.4,3560.1,14.57169213]
[1754305077668,4.252,3560.3,3560.2,2.94963096]
[1754305078778,4.252,3560.3,3560.2,0.1408]
[1754305079405,4.252,3560.3,3560.2,2.94963096]
[1754305080482,2.001,3560.4,3560.3,5.80875207]
[1754305080791,6.253,3560.4,3560.3,5.80875207]
[1754305081165,2.001,3560.4,3560.3,5.80875207]
[1754305081399,6.253,3560.4,3560.3,5.80875207]
[1754305082495,6.253,3560.4,3560.3,3.0]
[1754305084472,6.253,3560.4,3560.2,0.1408]
[1754305085189,6.253,3560.4,3560.1,0.1408]
[1754305085607,6.253,3560.4,3560.0,0.002]
[1754305085774,7.56738,3560.4,3560.0,0.002]
[1754305085968,0.1408,3560.2,3560.0,0.002]
[1754305086209,4.252,3560.1,3560.0,0.002]
[1754305093074,4.252,3560.1,3560.0,3.002]
[1754305094010,2.001,3560.4,3560.0,3.002]
[1754305094197,4.252,3560.3,3560.1,2.80885031]
[1754305094596,4.252,3560.3,3560.0,3.002]
[1754305095008,0.1408,3560.2,3560.0,3.002]
[1754305095209,4.252,3560.1,3560.0,3.002]
[1754305100019,4.252,3560.1,3560.0,0.002]
[1754305100220,4.89138,3560.1,3560.0,0.002]
[1754305100596,4.92649137,3560.1,3560.0,0.002]
[1754305100799,5.47649137,3560.1,3560.0,0.002]
[1754305101003,5.44138,3560.1,3560.0,0.002]
[1754305101222,5.47649137,3560.1,3560.0,0.002]
[1754305101924,5.44138,3560.1,3560.0,0.002]
[1754305104499,1.18938,3560.1,3560.0,0.002]
[1754305104700,5.44138,3560.1,3560.0,0.002]
[1754305106893,1.18938,3560.1,3560.0,0.002]
[1754305107094,5.44238,3560.1,3560.0,0.002]
[1754305107994,8.28640123,3560.1,3560.0,0.002]
[1754305108198,8.25128986,3560.1,3560.0,0.002]
[1754305110228,9.25128986,3560.1,3560.0,0.002]
[1754305111331,16.29728985,3560.1,3560.0,0.002]
[1754305111502,13.48837999,3560.1,3560.0,0.002]
[1754305111824,13.49137999,3560.1,3560.0,0.002]
[1754305112025,9.37617999,3560.1,3560.0,0.002]
[1754305112193,13.63317999,3560.1,3560.0,0.002]
[1754305112399,13.63217999,3560.1,3560.0,0.002]
[1754305113017,9.37617999,3560.1,3560.0,0.002]
[1754305113232,13.08317999,3560.1,3560.0,0.002]
[1754305114228,1.1408,3560.1,3560.0,0.002]
[1754305114422,5.3988,3560.1,3560.0,0.002]
[1754305117737,1.1408,3560.1,3560.0,0.002]
[1754305117936,5.3988,3560.1,3560.0,0.002]
[1754305120848,1.1408,3560.1,3560.0,0.002]
[1754305121138,5.3988,3560.1,3560.0,0.28331199]
[1754305121705,5.258,3560.1,3560.0,0.28331199]
[1754305121910,1.0,3560.1,3560.0,3.09230075]
[1754305122116,5.257,3560.1,3560.0,3.09230075]
[1754305123218,5.257,3560.1,3560.0,6.23310075]
[1754305123954,5.258,3560.1,3560.0,17.80479288]
[1754305126354,1.0,3560.1,3560.0,17.80479288]
[1754305126538,5.258,3560.1,3560.0,17.80479288]
[1754305126740,1.0,3560.1,3560.0,17.80479288]
[1754305126943,5.257,3560.1,3560.0,17.80479288]
[1754305127249,1.0,3560.1,3560.0,17.80479288]
[1754305127421,2.001,3560.4,3560.3,5.80875207]
[1754305127620,6.259,3560.4,3560.3,5.80875207]
[1754305127818,6.259,3560.4,3560.3,5.94955207]
[1754305128350,0.001,3560.8,3560.6,2.80851541]
[1754305128526,0.001,3560.8,3560.7,2.80843654]
[1754305128857,4.26,3560.8,3560.7,2.94923654]
[1754305130159,4.26,3560.8,3560.7,5.94923654]
[1754305130828,4.26,3560.8,3560.7,6.15901981]
[1754305131738,4.259,3560.8,3560.7,6.15901981]
[1754305132745,0.001,3560.8,3560.7,6.15901981]
[1754305132956,4.259,3560.8,3560.7,6.15901981]
[1754305133258,10.401,3562.0,3561.7,2.80757087]
[1754305133564,4.258,3561.9,3561.6,2.80768454]
[1754305133725,4.258,3561.9,3561.6,2.94768454]
[1754305134546,4.258,3561.9,3561.7,2.80763713]
[1754305135750,4.258,3561.9,3561.7,2.80762174]
[1754305135951,4.258,3561.9,3561.7,2.80764803]
[1754305136157,4.258,3561.9,3561.6,0.14]
[1754305136344,4.258,3561.9,3561.8,2.8075692]
[1754305137163,4.257,3561.9,3561.8,2.8075692]
[1754305137543,10.401,3562.0,3561.8,2.8075692]
[1754305137740,4.257,3561.9,3561.8,2.8075692]
[1754305138258,4.257,3561.9,3561.7,2.80762483]
[1754305138463,4.257,3561.9,3561.8,2.8075692]
[1754305138677,4.257,3561.9,3561.7,2.80762299]
[1754305138885,4.257,3561.9,3561.6,2.94770516]
[1754305139448,4.256,3561.8,3561.6,2.94770516]
[1754305139877,10.401,3562.0,3561.6,2.94770516]
[1754305140178,4.256,3561.9,3561.6,0.14]
[1754305140499,0.69,3561.8,3560.7,0.20978327]
[1754305140781,0.14,3561.6,3560.7,2.80841739]
[1754305140945,4.256,3561.5,3561.0,3.0]
[1754305141150,0.14,3561.4,3561.0,2.80819657]
[1754305141459,0.14,3561.4,3561.1,2.80811703]
[1754305141661,0.14,3561.4,3559.6,7.06727049]
[1754305141662,0.5796,3561.4,3560.7,0.20829701]
[1754305141876,0.5796,3561.4,3560.3,11.57169213]
[1754305141877,0.5796,3561.4,3560.9,3.0]
[1754305142175,0.5796,3561.4,3560.8,2.94914166]
[1754305143104,0.5796,3561.4,3560.8,0.1408]
[1754305143248,0.5796,3561.4,3560.8,2.94915198]
[1754305144390,0.14,3561.4,3560.8,0.1408]
[1754305144697,0.14,3561.4,3560.8,2.94915315]
[1754305145293,0.14,3561.4,3560.8,0.1408]
[1754305145697,0.14,3561.4,3560.8,2.94914744]
[1754305145897,0.17509855,3561.4,3560.8,0.1408]
[1754305146094,0.61469855,3561.4,3560.8,0.1408]
[1754305146390,0.4396,3561.4,3560.7,0.21508701]
[1754305146585,0.1408,3561.1,3560.7,0.21508701]
[1754305146792,4.255,3561.0,3560.6,0.1408]
[1754305148997,4.255,3561.0,3560.3,14.57169213]
[1754305149193,0.1408,3560.9,3560.4,0.1408]
[1754305149361,0.1408,3560.9,3560.3,14.71249213]
[1754305150602,0.17590348,3560.9,3560.3,3.1408]
[1754305150962,0.17590348,3560.9,3560.3,0.1408]
[1754305151900,0.55,3560.8,3560.0,0.002]
[1754305152099,0.1408,3560.3,3560.0,0.002]
[1754305152305,4.256,3560.2,3560.0,0.002]
[1754305156604,4.258,3560.1,3560.0,11.57369213]
[1754305156807,0.4396,3561.4,3560.0,11.57369213]
[1754305157106,0.1408,3560.5,3560.0,11.57369213]
[1754305157307,4.257,3560.4,3560.0,14.38266813]
[1754305157506,0.1408,3560.5,3560.0,14.38266813]
[1754305157812,4.257,3560.3,3560.0,11.57369213]
[1754305158483,4.257,3560.3,3560.0,0.002]
[1754305161401,4.257,3560.3,3560.0,11.57369213]
[1754305161615,0.55,3561.5,3560.0,11.57369213]
[1754305161816,0.1408,3560.6,3560.2,2.80883096]
[1754305162018,4.256,3560.5,3560.2,2.80883096]
[1754305162313,4.256,3560.5,3560.4,11.57169213]
[1754305162615,0.55,3561.5,3560.4,11.57169213]
[1754305162790,0.1408,3561.0,3560.6,2.80849924]
[1754305163396,0.1408,3561.0,3560.4,11.71249213]
[1754305163609,0.1408,3561.0,3560.4,14.52112948]
[1754305164517,0.1408,3561.0,3560.4,14.52111667]
[1754305166424,0.1408,3561.0,3560.6,2.80851273]
[1754305166626,4.256,3561.4,3560.5,2.80856657]
[1754305167325,0.1408,3561.1,3560.6,2.94931108]
[1754305167489,4.255,3561.0,3560.6,0.1408]
[1754305168091,0.1408,3561.1,3560.6,0.1408]
[1754305168290,4.255,3561.0,3560.6,0.1408]
[1754305168721,4.255,3561.0,3560.6,2.94924077]
[1754305168893,4.255,3561.0,3560.6,0.1408]
[1754305169400,4.255,3561.0,3560.6,2.94931077]
[1754305169805,4.255,3561.0,3560.6,0.1408]
[1754305171192,4.255,3561.0,3560.5,0.1408]
[1754305175605,4.255,3561.0,3560.5,2.9493647]
[1754305176298,4.255,3561.0,3560.5,0.1408]
[1754305177112,4.255,3561.0,3560.5,2.94937577]
[1754305177832,4.255,3561.0,3560.6,2.80850296]
[1754305178157,4.255,3561.0,3560.5,0.1408]
[1754305178333,4.255,3561.0,3560.6,2.80844356]
[1754305178902,4.255,3561.0,3560.5,2.94936159]
[1754305179102,4.255,3561.0,3560.5,0.1408]
[1754305179720,4.255,3561.0,3560.5,2.94937728]
[1754305181903,4.255,3561.0,3560.3,2.80872367]
[1754305182134,0.1408,3560.8,3560.3,2.94952367]
[1754305182302,0.1408,3560.8,3560.2,2.80879605]
[1754305182645,0.1408,3560.8,3560.2,0.1408]
[1754305182807,0.1408,3560.8,3560.3,2.80875207]
[1754305184446,4.253,3560.7,3560.3,2.80875207]
[1754305186624,4.253,3560.7,3560.2,2.94960295]
[1754305188346,4.253,3560.7,3560.4,2.80867222]
[1754305188745,4.253,3560.7,3560.2,2.94962806]
[1754305188948,0.03510644,3560.6,3560.0,0.002]
[1754305189112,0.1408,3560.3,3560.0,0.002]
[1754305189309,4.253,3560.2,3560.0,0.002]
[1754305194653,0.1408,3560.3,3560.0,0.002]
[1754305194862,4.253,3560.2,3560.0,0.002]
[1754305199874,0.1408,3560.1,3560.0,0.002]
[1754305200708,0.72591137,3560.1,3560.0,0.002]
[1754305200880,0.6908,3560.1,3560.0,0.002]
[1754305201036,0.72591137,3560.1,3560.0,0.002]
[1754305201373,3.53482123,3560.1,3560.0,0.002]
[1754305201551,5.38091845,3560.1,3560.0,0.002]
[1754305201951,2.57200859,3560.1,3560.0,0.002]
[1754305202183,6.78989722,3560.1,3560.0,0.002]
[1754305202478,2.53689722,3560.1,3560.0,0.002]
[1754305202681,4.9438,3560.1,3560.0,0.002]
[1754305202842,0.6908,3560.1,3560.0,0.002]
[1754305203041,4.9438,3560.1,3560.0,0.002]
[1754305204916,0.6908,3560.1,3560.0,0.002]
[1754305205090,4.3938,3560.1,3560.0,0.002]
[1754305205269,5.50818,3560.1,3560.0,0.002]
[1754305207291,6.05818,3560.1,3560.0,0.002]
[1754305208393,9.05818,3560.1,3560.0,0.002]
[1754305208586,9.55228,3560.1,3560.0,0.002]
[1754305208790,42.36118986,3560.1,3560.0,0.002]
[1754305209282,42.70978986,3560.1,3560.0,0.002]
[1754305210083,42.36118986,3560.1,3560.0,0.002]
[1754305210482,42.70978986,3560.1,3560.0,0.002]
[1754305211469,42.69565795,3560.1,3560.0,0.002]
[1754305211671,0.55,3559.1,3558.6,0.4901]
[1754305211866,0.55,3559.1,3557.9,0.21148424]
[1754305211867,2.80961733,3559.3,3558.9,0.4521]
[1754305211868,4.824,3559.0,3558.9,0.4521]
[1754305212075,4.824,3559.0,3558.9,0.9422]
[1754305212306,4.9648,3559.0,3558.9,0.9422]
[1754305214820,4.9648,3559.0,3558.6,0.4521]
[1754305214973,5.3181,3559.0,3558.7,0.4521]
[1754305215175,0.1408,3558.8,3558.7,0.4521]
[1754305215482,4.4158,3558.8,3558.7,0.4521]
[1754305216538,4.4158,3558.8,3558.7,0.9114]
[1754305223407,4.4158,3558.8,3558.1,2.81046829]
[1754305223611,0.1408,3558.5,3558.3,0.4715]
[1754305223931,4.273,3558.4,3558.3,0.4715]
[1754305224509,4.273,3558.4,3558.3,0.9308]
[1754305235505,4.273,3558.4,3558.1,0.9308]
[1754305235803,4.273,3558.4,3558.2,0.9308]
[1754305236001,4.273,3558.4,3558.3,0.9308]
[1754305239183,4.30812814,3558.4,3557.9,0.20669457]
[1754305239409,0.1408,3558.3,3558.0,0.9308]
[1754305239610,0.1408,3558.3,3558.1,0.9308]
[1754305239776,0.1408,3558.3,3558.1,0.4715]
[1754305240108,0.1408,3558.3,3557.6,2.81086098]
[1754305240109,0.50643012,3558.2,3557.6,0.9308]
[1754305240307,4.268,3558.1,3557.7,0.1408]
[1754305240688,0.4713,3558.0,3557.8,0.4715]
[1754305241189,4.268,3558.1,3557.7,0.1408]
[1754305241507,0.1408,3557.8,3557.5,0.9308]
[1754305241707,4.268,3557.7,3557.5,0.4593]
[1754305241907,4.268,3557.7,3557.6,0.4715]
[1754305242074,4.268,3557.7,3557.6,0.9308]
[1754305242675,0.55,3558.5,3557.6,0.9308]
[1754305242895,0.1408,3558.1,3557.7,12.50249213]
[1754305243109,4.268,3558.0,3557.8,0.9308]
[1754305243279,4.268,3558.0,3557.7,11.57169213]
[1754305243474,4.268,3558.0,3557.9,0.9308]
[1754305244000,0.1408,3558.1,3557.9,3.74140119]
[1754305244222,0.1408,3558.5,3558.0,0.9308]
[1754305244408,0.1408,3558.6,3558.3,11.57169213]
[1754305244591,4.269,3558.5,3558.1,11.57169213]
[1754305244791,4.269,3558.5,3558.4,0.9308]
[1754305246287,0.1408,3558.7,3558.4,0.9308]
[1754305246482,4.269,3558.6,3558.5,0.4482]
[1754305246694,4.269,3558.6,3558.1,0.1408]
[1754305246921,4.7486,3558.6,3558.2,0.9477]
[1754305247104,4.7486,3558.6,3558.2,0.4995]
[1754305247416,0.4796,3558.5,3558.2,0.9477]
[1754305247583,0.4796,3558.5,3558.2,0.4995]
[1754305247783,0.03512814,3558.4,3558.3,0.002]
[1754305247993,0.51472814,3558.4,3558.3,0.002]
[1754305248324,0.65552814,3558.4,3558.3,0.002]
[1754305248517,1.20552814,3558.4,3558.3,0.002]
[1754305248714,1.519,3558.4,3558.3,0.002]
[1754305248902,2.50353209,3558.4,3558.3,0.002]
[1754305249313,2.15493209,3558.4,3558.3,0.002]
[1754305255346,1.67533209,3558.4,3558.3,0.002]
[1754305255545,1.67533209,3558.4,3558.3,0.9497]
[1754305256062,0.1408,3558.4,3558.3,0.4502]
[1754305256259,0.1408,3558.4,3558.3,0.9497]
[1754305257008,6.753,3558.9,3558.3,12.52139213]
[1754305257216,4.4128,3558.8,3558.4,2.81019337]
[1754305257416,4.4128,3558.8,3558.5,2.81015439]
[1754305257616,4.4128,3558.8,3558.6,0.9477]
[1754305258148,4.4128,3558.8,3558.7,0.4482]
[1754305258310,4.4128,3558.8,3558.4,0.9477]
[1754305258514,1.63130518,3558.7,3558.3,0.002]
[1754305258726,0.1408,3558.4,3558.3,0.002]
[1754305258950,4.4148,3558.4,3558.3,0.002]
[1754305259117,4.8944,3558.4,3558.3,0.002]
[1754305259512,4.4148,3558.4,3558.3,0.002]
[1754305259717,4.4148,3558.4,3558.3,0.9497]
[1754305260339,4.274,3558.4,3558.3,3.76003077]
[1754305260650,4.273,3558.4,3558.3,3.76002421]
[1754305260948,4.273,3558.4,3558.3,0.9497]
[1754305261873,4.273,3558.4,3558.3,0.4502]
[1754305262076,4.4138,3558.4,3558.3,0.4502]
[1754305264552,4.8934,3558.4,3558.3,0.002]
[1754305264753,5.33478,3558.4,3558.3,0.002]
[1754305265268,5.88478,3558.4,3558.3,0.002]
[1754305265429,6.23338,3558.4,3558.3,0.002]
[1754305265631,5.88478,3558.4,3558.3,0.002]
[1754305265878,6.23338,3558.4,3558.3,0.002]
[1754305266980,5.88478,3558.4,3558.3,0.002]
[1754305273597,5.40518,3558.4,3558.3,0.002]
[1754305273968,4.4098,3558.4,3558.3,0.9497]
[1754305275214,4.4098,3558.4,3558.3,0.4502]
[1754305277480,4.4098,3558.4,3558.3,0.938]
[1754305285411,4.4098,3558.4,3558.3,0.4502]
[1754305286001,4.8607,3558.4,3558.3,0.002]
[1754305287396,4.4098,3558.4,3558.3,0.002]
[1754305287600,4.4098,3558.4,3558.3,0.4767]
[1754305288350,4.4058,3558.4,3558.3,0.9645]
[1754305288651,4.4058,3558.4,3558.3,0.4767]
[1754305288998,4.8567,3558.4,3558.3,0.002]
[1754305297612,4.4058,3558.4,3558.3,0.002]
[1754305298144,4.8567,3558.4,3558.3,0.002]
[1754305303854,5.71355065,3558.4,3558.3,0.002]
[1754305304055,6.57702251,3558.4,3558.3,0.002]
[1754305304855,6.22842251,3558.4,3558.3,0.002]
[1754305310488,4.259,3558.4,3558.3,0.9141]
[1754305310647,4.26,3558.4,3558.3,0.9141]
[1754305310839,4.26,3558.4,3558.3,3.72436815]
[1754305311739,4.26,3558.4,3558.3,0.9141]
[1754305311958,4.26,3558.4,3558.3,0.4608]
[1754305312159,4.26,3558.4,3558.3,0.002]
[1754305312365,4.4008,3558.4,3558.3,0.002]
[1754305312885,4.4008,3558.4,3558.3,0.9141]
[1754305315598,4.4008,3558.4,3558.3,0.4608]
[1754305315889,4.4008,3558.4,3558.3,0.9141]
[1754305317243,4.4008,3558.4,3558.3,0.4608]
[1754305317756,4.4008,3558.4,3558.3,0.002]
[1754305317976,5.97708,3558.4,3558.3,0.002]
[1754305319172,5.51628,3558.4,3558.3,0.002]
[1754305319370,6.91080814,3558.4,3558.3,0.002]
[1754305319569,6.87568,3558.4,3558.3,0.002]
[1754305319879,6.52708,3558.4,3558.3,0.002]
[1754305321884,6.52708,3558.4,3558.3,0.9141]
[1754305321885,0.1408,3558.4,3558.3,0.9141]
[1754305322054,4.4008,3558.4,3558.3,0.9141]
[1754305323090,4.4008,3558.4,3558.3,0.4608]
[1754305324288,4.4008,3558.4,3558.3,0.9141]
[1754305325957,4.3998,3558.4,3558.3,0.9141]
[1754305327216,4.3998,3558.4,3558.3,0.4608]
[1754305329389,4.8606,3558.4,3558.3,0.002]
[1754305329965,4.3998,3558.4,3558.3,0.002]
[1754305330473,5.56126,3558.4,3558.3,0.002]
[1754305330796,6.02206,3558.4,3558.3,0.002]
[1754305332515,5.88126,3558.4,3558.3,0.002]
[1754305332675,4.259,3558.4,3558.3,0.9141]
[1754305333380,4.259,3558.4,3558.3,3.72443077]
[1754305333881,4.259,3558.4,3558.3,0.9141]
[1754305334524,4.259,3558.4,3558.3,3.72443077]
[1754305337426,4.259,3558.4,3558.3,0.9141]
[1754305337593,4.259,3558.4,3558.3,3.72443077]
[1754305339800,6.754,3558.8,3558.4,2.81023617]
[1754305340004,4.259,3558.7,3558.5,0.9463]
[1754305340206,4.259,3558.7,3558.5,1.0871]
[1754305340414,4.259,3558.7,3558.5,0.6252]
[1754305340618,4.259,3558.7,3558.6,0.4619]
[1754305341255,4.259,3558.7,3558.5,0.1408]
[1754305341408,0.4793,3558.6,3558.5,0.1408]
[1754305341603,4.259,3558.7,3558.6,0.4619]
[1754305344733,4.259,3558.7,3558.6,3.75639385]
[1754305345239,4.259,3558.7,3558.5,0.1408]
[1754305345534,4.259,3558.6,3558.5,0.1408]
[1754305345752,4.259,3558.6,3558.5,3.43537282]
[1754305345948,4.259,3558.6,3558.5,0.6252]